[Event "Titled Tuesday Blitz April 19 Early 2022"]
[White "Matlakov, Maxim"]
[Black "Sanal, Vahap"]
[WhiteFideId "4168003"]
[BlackFideId "6300545"]
[WhiteElo "2669"]
[BlackElo "2603"]
[Result "1-0"]
[Round "04"]
[TimeControl "180+1"]
[Date "2022.04.19"]
[WhiteClock "0:00:10"]
[BlackClock "0:00:04"]

1. d4 {[%clk 0:03:00]}  Nf6 {[%clk 0:02:59]} 2. Nf3 {[%clk 0:03:01]}  g6 {[%clk 0:02:59]} 3. g3 {[%clk 0:03:01]}  Bg7 {[%clk 0:03:00]} 4. Bg2 {[%clk 0:03:01]}  O-O {[%clk 0:03:00]} 5. O-O {[%clk 0:03:02]}  d6 {[%clk 0:03:01]} 6. Re1 {[%clk 0:03:02]}  Nbd7 {[%clk 0:03:00]} 7. c4 {[%clk 0:03:01]}  e5 {[%clk 0:03:00]} 8. Nc3 {[%clk 0:03:02]}  c6 {[%clk 0:02:57]} 9. e4 {[%clk 0:03:00]}  exd4 {[%clk 0:02:55]} 10. Nxd4 {[%clk 0:03:00]}  Re8 {[%clk 0:02:56]} 11. h3 {[%clk 0:02:58]}  Nc5 {[%clk 0:02:57]} 12. b3 {[%clk 0:02:50]}  a5 {[%clk 0:02:57]} 13. Bf4 {[%clk 0:02:45]}  Nh5 {[%clk 0:02:51]} 14. Be3 {[%clk 0:02:44]}  Nf6 {[%clk 0:02:47]} 15. Qc2 {[%clk 0:02:42]}  Qc7 {[%clk 0:02:45]} 16. Rad1 {[%clk 0:02:41]}  Bd7 {[%clk 0:02:38]} 17. f4 {[%clk 0:02:40]}  Rad8 {[%clk 0:02:37]} 18. Bf2 {[%clk 0:02:40]}  Bc8 {[%clk 0:02:37]} 19. Nf3 {[%clk 0:02:31]}  b6 {[%clk 0:02:28]} 20. Nd4 {[%clk 0:02:30]}  Ne6 {[%clk 0:02:21]} 21. Nxe6 {[%clk 0:02:24]}  Bxe6 {[%clk 0:02:21]} 22. Bd4 {[%clk 0:02:23]}  Nh5 {[%clk 0:02:03]} 23. Bxg7 {[%clk 0:02:19]}  Nxg7 {[%clk 0:02:03]} 24. g4 {[%clk 0:02:17]}  f5 {[%clk 0:02:00]} 25. exf5 {[%clk 0:02:09]}  gxf5 {[%clk 0:02:00]} 26. g5 {[%clk 0:02:09]}  Bc8 {[%clk 0:01:59]} 27. Qf2 {[%clk 0:02:06]}  Be6 {[%clk 0:01:43]} 28. Ne2 {[%clk 0:02:03]}  d5 {[%clk 0:01:36]} 29. cxd5 {[%clk 0:01:40]}  Bxd5 {[%clk 0:01:34]} 30. Ng3 {[%clk 0:01:33]}  Bxg2 {[%clk 0:01:31]} 31. Kxg2 {[%clk 0:01:34]}  Rxe1 {[%clk 0:01:26]} 32. Rxe1 {[%clk 0:01:30]}  c5 {[%clk 0:01:22]} 33. h4 {[%clk 0:01:25]}  Qc6+ {[%clk 0:01:18]} 34. Kh3 {[%clk 0:01:23]}  Rd3 {[%clk 0:01:04]} 35. Re3 {[%clk 0:01:20]}  Rd1 {[%clk 0:00:59]} 36. Qe2 {[%clk 0:01:07]}  Rd7 {[%clk 0:00:29]} 37. h5 {[%clk 0:01:05]}  h6 {[%clk 0:00:30]} 38. g6 {[%clk 0:01:04]}  Kf8 {[%clk 0:00:14]} 39. Re5 {[%clk 0:01:00]}  b5 {[%clk 0:00:10]} 40. Qe3 {[%clk 0:00:53]}  c4 {[%clk 0:00:05]} 41. Rc5 {[%clk 0:00:51]}  Qd6 {[%clk 0:00:03]} 42. Nxf5 {[%clk 0:00:40]}  Nxf5 {[%clk 0:00:03]} 43. Rxf5+ {[%clk 0:00:40]}  Kg7 {[%clk 0:00:04]} 44. Rxb5 {[%clk 0:00:31]}  Qd3 {[%clk 0:00:03]} 45. Re5 {[%clk 0:00:15]}  c3 {[%clk 0:00:03]} 46. Qxd3 {[%clk 0:00:11]}  Rxd3+ {[%clk 0:00:04]} 47. Kg4 {[%clk 0:00:11]}  Kf6 {[%clk 0:00:04]} 48. Rc5 {[%clk 0:00:11]}  a4 {[%clk 0:00:03]} 49. bxa4 {[%clk 0:00:10]}  Re3 {[%clk 0:00:03]} 50. Rc6+ {[%clk 0:00:10]}  Kg7 {[%clk 0:00:04]} 51. f5 {[%clk 0:00:11]}  Re4+ {[%clk 0:00:03]} 52. Kf3 {[%clk 0:00:10]}  Rxa4 {[%clk 0:00:04]} 53. f6+ {[%clk 0:00:10]} 1-0


[Site "https://www.chess.com"]

[Event "Titled Tuesday Blitz April 19 Early 2022"]
[White "Meshkovs, Nikita"]
[Black "Maksimenko, Viktor"]
[WhiteFideId "11602740"]
[BlackFideId "13710478"]
[WhiteElo "2506"]
[BlackElo "2269"]
[Result "1-0"]
[Round "04"]
[TimeControl "180+1"]
[Date "2022.04.19"]
[WhiteClock "0:00:40"]
[BlackClock "0:00:49"]

1. e4 {[%clk 0:02:58]}  c6 {[%clk 0:03:00]} 2. d4 {[%clk 0:02:58]}  d5 {[%clk 0:03:00]} 3. e5 {[%clk 0:02:58]}  Bf5 {[%clk 0:03:00]} 4. h4 {[%clk 0:02:59]}  h5 {[%clk 0:02:56]} 5. Bd3 {[%clk 0:02:57]}  Bxd3 {[%clk 0:02:56]} 6. Qxd3 {[%clk 0:02:58]}  Qa5+ {[%clk 0:02:55]} 7. Nd2 {[%clk 0:02:55]}  e6 {[%clk 0:02:53]} 8. Nf3 {[%clk 0:02:47]}  Nh6 {[%clk 0:02:53]} 9. O-O {[%clk 0:02:46]}  Nf5 {[%clk 0:02:54]} 10. c4 {[%clk 0:02:42]}  Qa6 {[%clk 0:02:49]} 11. b3 {[%clk 0:02:41]}  c5 {[%clk 0:02:41]} 12. Bb2 {[%clk 0:02:34]}  Nc6 {[%clk 0:02:41]} 13. dxc5 {[%clk 0:02:24]}  Bxc5 {[%clk 0:02:40]} 14. a3 {[%clk 0:02:24]}  Rd8 {[%clk 0:02:22]} 15. Qe2 {[%clk 0:02:06]}  Ncd4 {[%clk 0:01:58]} 16. Nxd4 {[%clk 0:02:05]}  Bxd4 {[%clk 0:01:59]} 17. Bxd4 {[%clk 0:01:46]}  Nxd4 {[%clk 0:02:00]} 18. Qd3 {[%clk 0:01:41]}  dxc4 {[%clk 0:01:57]} 19. Nxc4 {[%clk 0:01:40]}  Nf5 {[%clk 0:01:54]} 20. Qf3 {[%clk 0:01:09]}  Nxh4 {[%clk 0:01:48]} 21. Qh3 {[%clk 0:01:04]}  Nf5 {[%clk 0:01:38]} 22. Rad1 {[%clk 0:00:58]}  O-O {[%clk 0:01:16]} 23. Qxh5 {[%clk 0:00:54]}  b5 {[%clk 0:01:14]} 24. Nd2 {[%clk 0:00:46]}  g6 {[%clk 0:00:56]} 25. Qg5 {[%clk 0:00:46]}  Qc6 {[%clk 0:00:53]} 26. Nf3 {[%clk 0:00:41]}  Qc5 {[%clk 0:00:49]} 27. Rxd8 {[%clk 0:00:40]} 1-0


[Site "https://www.chess.com"]

[Event "Titled Tuesday Blitz April 19 Early 2022"]
[White "Mikhailovsky, Vladimir"]
[Black "Yurovskykh, Oleksandr"]
[WhiteFideId "34105414"]
[BlackFideId "14134020"]
[WhiteElo "2349"]
[BlackElo "2292"]
[Result "1-0"]
[Round "04"]
[TimeControl "180+1"]
[Date "2022.04.19"]
[WhiteClock "0:00:08"]
[BlackClock "0:00:11"]

1. e4 {[%clk 0:03:00]}  d5 {[%clk 0:02:56]} 2. exd5 {[%clk 0:03:00]}  Qxd5 {[%clk 0:02:53]} 3. Nc3 {[%clk 0:02:59]}  Qd8 {[%clk 0:02:52]} 4. d4 {[%clk 0:02:57]}  Nf6 {[%clk 0:02:53]} 5. Nf3 {[%clk 0:02:57]}  Bg4 {[%clk 0:02:53]} 6. Bc4 {[%clk 0:02:55]}  e6 {[%clk 0:02:52]} 7. h3 {[%clk 0:02:55]}  Bxf3 {[%clk 0:02:51]} 8. Qxf3 {[%clk 0:02:56]}  c6 {[%clk 0:02:51]} 9. Be3 {[%clk 0:02:53]}  Nbd7 {[%clk 0:02:51]} 10. O-O-O {[%clk 0:02:50]}  Bb4 {[%clk 0:02:46]} 11. Ne4 {[%clk 0:02:46]}  Nxe4 {[%clk 0:02:46]} 12. Qxe4 {[%clk 0:02:46]}  Nf6 {[%clk 0:02:41]} 13. Qf3 {[%clk 0:02:47]}  Bd6 {[%clk 0:02:26]} 14. Kb1 {[%clk 0:02:32]}  Qc7 {[%clk 0:02:23]} 15. g4 {[%clk 0:02:27]}  h6 {[%clk 0:02:20]} 16. h4 {[%clk 0:02:24]}  O-O-O {[%clk 0:02:17]} 17. g5 {[%clk 0:02:20]}  hxg5 {[%clk 0:02:17]} 18. hxg5 {[%clk 0:02:13]}  Nd5 {[%clk 0:02:16]} 19. Bc1 {[%clk 0:02:03]}  g6 {[%clk 0:01:53]} 20. Bb3 {[%clk 0:01:50]}  b5 {[%clk 0:01:52]} 21. c4 {[%clk 0:01:40]}  bxc4 {[%clk 0:01:52]} 22. Bxc4 {[%clk 0:01:41]}  Kb8 {[%clk 0:01:40]} 23. Bd2 {[%clk 0:01:33]}  Ka8 {[%clk 0:01:39]} 24. Rc1 {[%clk 0:01:33]}  Rxh1 {[%clk 0:01:31]} 25. Rxh1 {[%clk 0:01:31]}  Rf8 {[%clk 0:01:18]} 26. Rc1 {[%clk 0:01:23]}  Qb6 {[%clk 0:01:10]} 27. Qd3 {[%clk 0:01:06]}  Rb8 {[%clk 0:01:05]} 28. Bb3 {[%clk 0:01:04]}  Rc8 {[%clk 0:00:46]} 29. Rc4 {[%clk 0:01:03]}  Qa6 {[%clk 0:00:36]} 30. Qc2 {[%clk 0:00:49]}  Ne7 {[%clk 0:00:33]} 31. a3 {[%clk 0:00:45]}  Rb8 {[%clk 0:00:32]} 32. Ka2 {[%clk 0:00:44]}  Qb6 {[%clk 0:00:32]} 33. Ra4 {[%clk 0:00:41]}  Nd5 {[%clk 0:00:30]} 34. Qc4 {[%clk 0:00:39]}  Qb5 {[%clk 0:00:29]} 35. Qc2 {[%clk 0:00:36]}  Qb6 {[%clk 0:00:29]} 36. Rc4 {[%clk 0:00:33]}  Rc8 {[%clk 0:00:28]} 37. Ba4 {[%clk 0:00:32]}  Kb7 {[%clk 0:00:27]} 38. Bb3 {[%clk 0:00:25]}  Rc7 {[%clk 0:00:24]} 39. Ra4 {[%clk 0:00:25]}  Ka8 {[%clk 0:00:21]} 40. Ba5 {[%clk 0:00:25]}  Qb5 {[%clk 0:00:20]} 41. Bxc7 {[%clk 0:00:22]}  Bxc7 {[%clk 0:00:21]} 42. Rc4 {[%clk 0:00:22]}  Ne7 {[%clk 0:00:20]} 43. Ba4 {[%clk 0:00:22]}  Qd5 {[%clk 0:00:20]} 44. Ka1 {[%clk 0:00:16]}  Kb7 {[%clk 0:00:19]} 45. Qb3+ {[%clk 0:00:16]}  Bb6 {[%clk 0:00:20]} 46. Qc2 {[%clk 0:00:15]}  Bxd4 {[%clk 0:00:17]} 47. Bb3 {[%clk 0:00:13]}  Qe5 {[%clk 0:00:15]} 48. Ka2 {[%clk 0:00:10]}  c5 {[%clk 0:00:16]} 49. Ra4 {[%clk 0:00:10]}  Qd6 {[%clk 0:00:13]} 50. Bc4 {[%clk 0:00:09]}  Qb6 {[%clk 0:00:12]} 51. Ra6 {[%clk 0:00:08]}  Qc7 {[%clk 0:00:12]} 52. Qa4 {[%clk 0:00:08]}  Nc6 {[%clk 0:00:12]} 53. Bb5 {[%clk 0:00:08]}  Ne5 {[%clk 0:00:11]} 54. Rxa7+ {[%clk 0:00:08]} 1-0


[Site "https://www.chess.com"]

[Event "Titled Tuesday Blitz April 19 Early 2022"]
[White "Nakamura, Hikaru"]
[Black "Oparin, Grigoriy"]
[WhiteFideId "2016192"]
[BlackFideId "24125890"]
[WhiteElo "2850"]
[BlackElo "2665"]
[Result "1-0"]
[Round "04"]
[TimeControl "180+1"]
[Date "2022.04.19"]
[WhiteClock "0:02:16"]
[BlackClock "0:01:52"]

1. Nf3 {[%clk 0:03:00]}  Nf6 {[%clk 0:03:00]} 2. b3 {[%clk 0:02:59]}  d5 {[%clk 0:03:00]} 3. Bb2 {[%clk 0:02:59]}  e6 {[%clk 0:03:00]} 4. e3 {[%clk 0:02:59]}  Bd6 {[%clk 0:03:01]} 5. d4 {[%clk 0:02:58]}  O-O {[%clk 0:03:00]} 6. Bd3 {[%clk 0:02:57]}  b6 {[%clk 0:03:01]} 7. Nbd2 {[%clk 0:02:57]}  Bb7 {[%clk 0:03:01]} 8. c4 {[%clk 0:02:58]}  Nbd7 {[%clk 0:03:02]} 9. a4 {[%clk 0:02:54]}  a5 {[%clk 0:02:59]} 10. O-O {[%clk 0:02:52]}  Qe7 {[%clk 0:02:59]} 11. Ne5 {[%clk 0:02:50]}  c5 {[%clk 0:02:55]} 12. Nxd7 {[%clk 0:02:48]}  Nxd7 {[%clk 0:02:51]} 13. cxd5 {[%clk 0:02:48]}  exd5 {[%clk 0:02:48]} 14. dxc5 {[%clk 0:02:48]}  bxc5 {[%clk 0:02:48]} 15. Re1 {[%clk 0:02:46]}  Nf6 {[%clk 0:02:42]} 16. Qc2 {[%clk 0:02:32]}  h6 {[%clk 0:02:36]} 17. e4 {[%clk 0:02:25]}  d4 {[%clk 0:01:55]} 18. e5 {[%clk 0:02:20]}  Ng4 {[%clk 0:01:53]} 19. exd6 {[%clk 0:02:16]}  Qh4 {[%clk 0:01:52]} 20. Nf1 {[%clk 0:02:16]} 1-0


[Site "https://www.chess.com"]

[Event "Titled Tuesday Blitz April 19 Early 2022"]
[White "Petrosyan, Manuel"]
[Black "Petrovskyi, Vadym"]
[WhiteFideId "13300857"]
[BlackFideId "14165210"]
[WhiteElo "2592"]
[BlackElo "2400"]
[Result "0-1"]
[Round "04"]
[TimeControl "180+1"]
[Date "2022.04.19"]
[WhiteClock "0:00:01"]
[BlackClock "0:01:04"]

1. Nf3 {[%clk 0:02:57]}  Nf6 {[%clk 0:03:00]} 2. c4 {[%clk 0:02:56]}  g6 {[%clk 0:03:00]} 3. Nc3 {[%clk 0:02:55]}  Bg7 {[%clk 0:03:00]} 4. e4 {[%clk 0:02:56]}  d6 {[%clk 0:03:01]} 5. d4 {[%clk 0:02:56]}  O-O {[%clk 0:03:01]} 6. Be2 {[%clk 0:02:54]}  e5 {[%clk 0:03:00]} 7. O-O {[%clk 0:02:54]}  Nc6 {[%clk 0:03:01]} 8. Be3 {[%clk 0:02:54]}  Ng4 {[%clk 0:02:54]} 9. Bg5 {[%clk 0:02:54]}  f6 {[%clk 0:02:54]} 10. Bh4 {[%clk 0:02:54]}  g5 {[%clk 0:02:55]} 11. Bg3 {[%clk 0:02:54]}  f5 {[%clk 0:02:31]} 12. exf5 {[%clk 0:02:41]}  exd4 {[%clk 0:02:30]} 13. Nb5 {[%clk 0:02:36]}  Nh6 {[%clk 0:02:12]} 14. Nfxd4 {[%clk 0:02:18]}  Nxf5 {[%clk 0:02:07]} 15. Nxf5 {[%clk 0:02:15]}  Bxf5 {[%clk 0:02:07]} 16. c5 {[%clk 0:02:15]}  a6 {[%clk 0:01:56]} 17. Nc3 {[%clk 0:02:02]}  dxc5 {[%clk 0:01:52]} 18. Qb3+ {[%clk 0:01:54]}  Kh8 {[%clk 0:01:53]} 19. Qxb7 {[%clk 0:01:54]}  Nd4 {[%clk 0:01:51]} 20. Bc4 {[%clk 0:01:51]}  Rb8 {[%clk 0:01:46]} 21. Qxc7 {[%clk 0:01:50]}  Qxc7 {[%clk 0:01:43]} 22. Bxc7 {[%clk 0:01:50]}  Rxb2 {[%clk 0:01:44]} 23. Rac1 {[%clk 0:01:43]}  Nb5 {[%clk 0:01:39]} 24. Ba5 {[%clk 0:01:32]}  Na3 {[%clk 0:01:31]} 25. Bd5 {[%clk 0:01:12]}  Bd3 {[%clk 0:01:28]} 26. Rfd1 {[%clk 0:00:34]}  c4 {[%clk 0:01:28]} 27. Bc7 {[%clk 0:00:16]}  Rc2 {[%clk 0:01:20]} 28. Ne4 {[%clk 0:00:13]}  h6 {[%clk 0:01:17]} 29. Bd6 {[%clk 0:00:09]}  Rd8 {[%clk 0:01:17]} 30. Bxa3 {[%clk 0:00:06]}  Rxc1 {[%clk 0:01:14]} 31. Rxc1 {[%clk 0:00:07]}  Rxd5 {[%clk 0:01:14]} 32. Nc3 {[%clk 0:00:07]}  Rf5 {[%clk 0:01:07]} 33. f3 {[%clk 0:00:07]}  Bd4+ {[%clk 0:01:07]} 34. Kh1 {[%clk 0:00:07]}  g4 {[%clk 0:01:06]} 35. fxg4 {[%clk 0:00:04]}  Rf2 {[%clk 0:01:07]} 36. Bd6 {[%clk 0:00:01]}  Bxc3 {[%clk 0:01:06]} 37. h3 {[%clk 0:00:01]}  Bg7 {[%clk 0:01:04]} 0-1


[Site "https://www.chess.com"]

[Event "Titled Tuesday Blitz April 19 Early 2022"]
[White "Praggnanandhaa R"]
[Black "Donchenko, Alexander"]
[WhiteFideId "25059530"]
[BlackFideId "24603295"]
[WhiteElo "2599"]
[BlackElo "2539"]
[Result "1/2-1/2"]
[Round "04"]
[TimeControl "180+1"]
[Date "2022.04.19"]
[WhiteClock "0:00:03"]
[BlackClock "0:00:05"]

1. c4 {[%clk 0:03:00]}  Nf6 {[%clk 0:02:59]} 2. Nc3 {[%clk 0:03:00]}  c5 {[%clk 0:02:59]} 3. e3 {[%clk 0:02:57]}  g6 {[%clk 0:02:58]} 4. Nf3 {[%clk 0:02:57]}  Bg7 {[%clk 0:02:58]} 5. d4 {[%clk 0:02:57]}  cxd4 {[%clk 0:02:57]} 6. exd4 {[%clk 0:02:57]}  d5 {[%clk 0:02:58]} 7. cxd5 {[%clk 0:02:42]}  Nxd5 {[%clk 0:02:57]} 8. Bb5+ {[%clk 0:02:42]}  Bd7 {[%clk 0:02:53]} 9. Bc4 {[%clk 0:02:40]}  Be6 {[%clk 0:02:50]} 10. Qb3 {[%clk 0:02:36]}  Nc7 {[%clk 0:02:40]} 11. d5 {[%clk 0:02:27]}  Bc8 {[%clk 0:02:31]} 12. d6 {[%clk 0:02:24]}  Ne6 {[%clk 0:02:29]} 13. dxe7 {[%clk 0:02:22]}  Qxe7 {[%clk 0:02:27]} 14. Nd5 {[%clk 0:02:22]}  Qd8 {[%clk 0:01:44]} 15. Qa3 {[%clk 0:02:16]}  Nc6 {[%clk 0:01:39]} 16. O-O {[%clk 0:02:15]}  Qa5 {[%clk 0:01:37]} 17. Qd6 {[%clk 0:02:00]}  Qd8 {[%clk 0:01:30]} 18. Bf4 {[%clk 0:01:57]}  Qxd6 {[%clk 0:01:03]} 19. Bxd6 {[%clk 0:01:58]}  Bd7 {[%clk 0:01:02]} 20. Rfe1 {[%clk 0:01:51]}  O-O-O {[%clk 0:01:01]} 21. Rac1 {[%clk 0:01:51]}  Bf8 {[%clk 0:00:53]} 22. Bg3 {[%clk 0:01:39]}  Bh6 {[%clk 0:00:41]} 23. Ne5 {[%clk 0:01:10]}  Bxc1 {[%clk 0:00:36]} 24. Rxc1 {[%clk 0:01:06]}  Nxe5 {[%clk 0:00:14]} 25. Bxe5 {[%clk 0:00:47]}  Bc6 {[%clk 0:00:14]} 26. Ne7+ {[%clk 0:00:46]}  Kd7 {[%clk 0:00:14]} 27. Nxc6 {[%clk 0:00:46]}  bxc6 {[%clk 0:00:14]} 28. Bxh8 {[%clk 0:00:42]}  Rxh8 {[%clk 0:00:15]} 29. Bxe6+ {[%clk 0:00:39]}  fxe6 {[%clk 0:00:15]} 30. Kf1 {[%clk 0:00:36]}  Rb8 {[%clk 0:00:16]} 31. b3 {[%clk 0:00:36]}  a5 {[%clk 0:00:16]} 32. Rc4 {[%clk 0:00:36]}  Rb5 {[%clk 0:00:16]} 33. Ke2 {[%clk 0:00:36]}  Kd6 {[%clk 0:00:15]} 34. g3 {[%clk 0:00:33]}  Rh5 {[%clk 0:00:15]} 35. h4 {[%clk 0:00:33]}  Re5+ {[%clk 0:00:14]} 36. Kd3 {[%clk 0:00:32]}  h5 {[%clk 0:00:14]} 37. Ra4 {[%clk 0:00:25]}  Kc7 {[%clk 0:00:12]} 38. Re4 {[%clk 0:00:22]}  Rd5+ {[%clk 0:00:11]} 39. Kc3 {[%clk 0:00:21]}  Kd6 {[%clk 0:00:08]} 40. Re2 {[%clk 0:00:15]}  Rf5 {[%clk 0:00:05]} 41. Rd2+ {[%clk 0:00:14]}  Kc5 {[%clk 0:00:05]} 42. Rc2 {[%clk 0:00:12]}  Kb5 {[%clk 0:00:05]} 43. Kd4 {[%clk 0:00:12]}  c5+ {[%clk 0:00:04]} 44. Ke4 {[%clk 0:00:12]}  a4 {[%clk 0:00:04]} 45. bxa4+ {[%clk 0:00:04]}  Kxa4 {[%clk 0:00:05]} 46. f3 {[%clk 0:00:05]}  Rd5 {[%clk 0:00:04]} 47. g4 {[%clk 0:00:04]}  Rd4+ {[%clk 0:00:03]} 48. Ke5 {[%clk 0:00:04]}  hxg4 {[%clk 0:00:03]} 49. fxg4 {[%clk 0:00:04]}  Rxg4 {[%clk 0:00:03]} 50. Rxc5 {[%clk 0:00:04]}  Rxh4 {[%clk 0:00:03]} 51. Kxe6 {[%clk 0:00:04]}  Rh5 {[%clk 0:00:03]} 52. Rc3 {[%clk 0:00:02]}  Kb4 {[%clk 0:00:03]} 53. Rb3+ {[%clk 0:00:02]}  Ka4 {[%clk 0:00:03]} 54. Kf6 {[%clk 0:00:03]}  Rh2 {[%clk 0:00:03]} 55. Kxg6 {[%clk 0:00:03]}  Rxa2 {[%clk 0:00:04]} 56. Rg3 {[%clk 0:00:03]}  Ra3 {[%clk 0:00:04]} 57. Rxa3+ {[%clk 0:00:03]}  Kxa3 {[%clk 0:00:05]} 1/2-1/2


[Site "https://www.chess.com"]

[Event "Titled Tuesday Blitz April 19 Early 2022"]
[White "Zakhartsov, Vladimir"]
[Black "Tologon tegin, Semetei"]
[WhiteFideId "4145097"]
[BlackFideId "13800574"]
[WhiteElo "2491"]
[BlackElo "2258"]
[Result "1-0"]
[Round "04"]
[TimeControl "180+1"]
[Date "2022.04.19"]
[WhiteClock "0:00:06"]
[BlackClock "0:00:01"]

1. d4 {[%clk 0:03:00]}  Nf6 {[%clk 0:02:58]} 2. c4 {[%clk 0:03:00]}  e6 {[%clk 0:02:59]} 3. Nf3 {[%clk 0:02:59]}  b6 {[%clk 0:02:58]} 4. g3 {[%clk 0:02:57]}  Bb7 {[%clk 0:02:58]} 5. Bg2 {[%clk 0:02:58]}  Be7 {[%clk 0:02:57]} 6. O-O {[%clk 0:02:58]}  O-O {[%clk 0:02:57]} 7. Nc3 {[%clk 0:02:58]}  Ne4 {[%clk 0:02:57]} 8. Bd2 {[%clk 0:02:58]}  Nxc3 {[%clk 0:02:55]} 9. Bxc3 {[%clk 0:02:58]}  Be4 {[%clk 0:02:55]} 10. d5 {[%clk 0:02:57]}  Bf6 {[%clk 0:02:53]} 11. Rc1 {[%clk 0:02:57]}  d6 {[%clk 0:02:50]} 12. Nd4 {[%clk 0:02:50]}  Bxg2 {[%clk 0:02:48]} 13. Kxg2 {[%clk 0:02:51]}  Bxd4 {[%clk 0:02:44]} 14. Qxd4 {[%clk 0:02:50]}  e5 {[%clk 0:02:44]} 15. Qd3 {[%clk 0:02:50]}  Nd7 {[%clk 0:02:43]} 16. f4 {[%clk 0:02:51]}  Qe7 {[%clk 0:02:42]} 17. e4 {[%clk 0:02:49]}  Rae8 {[%clk 0:02:40]} 18. f5 {[%clk 0:02:49]}  a5 {[%clk 0:02:38]} 19. Qe3 {[%clk 0:02:46]}  f6 {[%clk 0:02:29]} 20. g4 {[%clk 0:02:44]}  g5 {[%clk 0:02:29]} 21. fxg6 {[%clk 0:02:32]}  hxg6 {[%clk 0:02:28]} 22. h4 {[%clk 0:02:33]}  Qg7 {[%clk 0:02:24]} 23. Rf3 {[%clk 0:02:23]}  Kf7 {[%clk 0:02:22]} 24. Kf2 {[%clk 0:02:19]}  Ke7 {[%clk 0:02:21]} 25. Ke2 {[%clk 0:02:19]}  Rh8 {[%clk 0:02:19]} 26. Rh1 {[%clk 0:02:19]}  Rh7 {[%clk 0:02:15]} 27. Kd2 {[%clk 0:02:16]}  Reh8 {[%clk 0:02:15]} 28. Rfh3 {[%clk 0:02:16]}  Qf7 {[%clk 0:02:03]} 29. Qf3 {[%clk 0:02:14]}  Kd8 {[%clk 0:01:54]} 30. h5 {[%clk 0:02:14]}  gxh5 {[%clk 0:01:53]} 31. Rxh5 {[%clk 0:02:12]}  Rxh5 {[%clk 0:01:52]} 32. gxh5 {[%clk 0:02:10]}  f5 {[%clk 0:01:46]} 33. exf5 {[%clk 0:02:08]}  Rh6 {[%clk 0:01:43]} 34. Kc2 {[%clk 0:02:05]}  Nf6 {[%clk 0:01:42]} 35. Bd2 {[%clk 0:02:00]}  Rxh5 {[%clk 0:01:42]} 36. Rg1 {[%clk 0:02:00]}  Nh7 {[%clk 0:01:19]} 37. Rg8+ {[%clk 0:01:55]}  Kd7 {[%clk 0:01:16]} 38. Rg7 {[%clk 0:01:53]}  Qxg7 {[%clk 0:01:15]} 39. Qxh5 {[%clk 0:01:54]}  Nf6 {[%clk 0:01:11]} 40. Qh4 {[%clk 0:01:52]}  Nh7 {[%clk 0:00:58]} 41. Qh3 {[%clk 0:01:45]}  Ke7 {[%clk 0:00:50]} 42. Bh6 {[%clk 0:01:34]}  Qf6 {[%clk 0:00:29]} 43. Be3 {[%clk 0:01:28]}  Qg7 {[%clk 0:00:28]} 44. Bf2 {[%clk 0:01:26]}  Nf6 {[%clk 0:00:27]} 45. Be3 {[%clk 0:01:19]}  Kf7 {[%clk 0:00:26]} 46. Kb3 {[%clk 0:01:15]}  Qg4 {[%clk 0:00:22]} 47. Qxg4 {[%clk 0:01:15]}  Nxg4 {[%clk 0:00:22]} 48. Bg5 {[%clk 0:01:16]}  Nf6 {[%clk 0:00:16]} 49. Ka4 {[%clk 0:01:14]}  Kg7 {[%clk 0:00:11]} 50. Kb5 {[%clk 0:01:13]}  Ne4 {[%clk 0:00:09]} 51. Bd8 {[%clk 0:01:08]}  Ng3 {[%clk 0:00:09]} 52. f6+ {[%clk 0:01:03]}  Kf7 {[%clk 0:00:09]} 53. Bxc7 {[%clk 0:01:04]}  e4 {[%clk 0:00:09]} 54. Bxb6 {[%clk 0:01:04]}  Nf5 {[%clk 0:00:09]} 55. Bxa5 {[%clk 0:01:01]}  Kxf6 {[%clk 0:00:09]} 56. a4 {[%clk 0:01:00]}  e3 {[%clk 0:00:09]} 57. Kc6 {[%clk 0:00:57]}  Ke7 {[%clk 0:00:08]} 58. Bc3 {[%clk 0:00:53]}  e2 {[%clk 0:00:08]} 59. a5 {[%clk 0:00:52]}  Nd4+ {[%clk 0:00:08]} 60. Kb7 {[%clk 0:00:52]}  Nb3 {[%clk 0:00:07]} 61. a6 {[%clk 0:00:52]}  Nc5+ {[%clk 0:00:08]} 62. Kb6 {[%clk 0:00:52]}  Na4+ {[%clk 0:00:08]} 63. Kc7 {[%clk 0:00:43]}  Nxc3 {[%clk 0:00:09]} 64. a7 {[%clk 0:00:44]}  e1=Q {[%clk 0:00:09]} 65. a8=Q {[%clk 0:00:44]}  Ne4 {[%clk 0:00:07]} 66. Qb7 {[%clk 0:00:26]}  Qe3 {[%clk 0:00:06]} 67. b4 {[%clk 0:00:23]}  Qd4 {[%clk 0:00:05]} 68. Qc6 {[%clk 0:00:15]}  Kf6 {[%clk 0:00:05]} 69. b5 {[%clk 0:00:15]}  Ke5 {[%clk 0:00:04]} 70. b6 {[%clk 0:00:15]}  Nc5 {[%clk 0:00:03]} 71. b7 {[%clk 0:00:11]}  Nxb7 {[%clk 0:00:03]} 72. Kxb7 {[%clk 0:00:12]}  Qb2+ {[%clk 0:00:02]} 73. Kc7 {[%clk 0:00:12]}  Qa3 {[%clk 0:00:02]} 74. Qb6 {[%clk 0:00:06]}  Qa4 {[%clk 0:00:01]} 75. Qxd6+ {[%clk 0:00:06]} 1-0


[Site "https://www.chess.com"]

[Event "Titled Tuesday Blitz April 19 Early 2022"]
[White "Aaditya Dhingra"]
[Black "Zhu, Jiner"]
[WhiteFideId "25678191"]
[BlackFideId "8608059"]
[WhiteElo "1849"]
[BlackElo "2281"]
[Result "1-0"]
[Round "05"]
[TimeControl "180+1"]
[Date "2022.04.19"]
[WhiteClock "0:00:06"]
[BlackClock "0:00:02"]

1. Nf3 {[%clk 0:03:00]}  Nf6 {[%clk 0:02:59]} 2. c4 {[%clk 0:03:00]}  e6 {[%clk 0:02:59]} 3. g3 {[%clk 0:02:58]}  d5 {[%clk 0:02:59]} 4. Bg2 {[%clk 0:02:58]}  Be7 {[%clk 0:02:59]} 5. O-O {[%clk 0:02:57]}  O-O {[%clk 0:02:45]} 6. b3 {[%clk 0:02:57]}  d4 {[%clk 0:02:44]} 7. Bb2 {[%clk 0:02:56]}  c5 {[%clk 0:02:44]} 8. e3 {[%clk 0:02:37]}  Nc6 {[%clk 0:02:44]} 9. exd4 {[%clk 0:02:37]}  cxd4 {[%clk 0:02:45]} 10. Re1 {[%clk 0:02:37]}  Re8 {[%clk 0:02:40]} 11. d3 {[%clk 0:02:34]}  Bf8 {[%clk 0:02:33]} 12. a3 {[%clk 0:02:34]}  a5 {[%clk 0:02:33]} 13. Ne5 {[%clk 0:02:32]}  Qd6 {[%clk 0:01:53]} 14. f4 {[%clk 0:02:22]}  Rb8 {[%clk 0:01:49]} 15. Nd2 {[%clk 0:02:12]}  Rd8 {[%clk 0:01:34]} 16. Ndf3 {[%clk 0:01:56]}  Qc5 {[%clk 0:01:07]} 17. Rb1 {[%clk 0:01:49]}  h6 {[%clk 0:00:44]} 18. Bc1 {[%clk 0:01:31]}  Bd7 {[%clk 0:00:35]} 19. g4 {[%clk 0:01:16]}  Nxe5 {[%clk 0:00:30]} 20. Nxe5 {[%clk 0:01:14]}  Be8 {[%clk 0:00:23]} 21. b4 {[%clk 0:01:12]}  axb4 {[%clk 0:00:21]} 22. axb4 {[%clk 0:01:12]}  Qc7 {[%clk 0:00:20]} 23. g5 {[%clk 0:00:53]}  hxg5 {[%clk 0:00:20]} 24. fxg5 {[%clk 0:00:53]}  Nd7 {[%clk 0:00:20]} 25. Ng4 {[%clk 0:00:42]}  Bd6 {[%clk 0:00:10]} 26. Qf3 {[%clk 0:00:41]}  b6 {[%clk 0:00:09]} 27. Qh3 {[%clk 0:00:36]}  Nf8 {[%clk 0:00:09]} 28. Rf1 {[%clk 0:00:32]}  Ng6 {[%clk 0:00:08]} 29. Be4 {[%clk 0:00:32]}  Bc6 {[%clk 0:00:08]} 30. Bxc6 {[%clk 0:00:15]}  Qxc6 {[%clk 0:00:08]} 31. Bd2 {[%clk 0:00:15]}  b5 {[%clk 0:00:05]} 32. c5 {[%clk 0:00:14]}  Bc7 {[%clk 0:00:06]} 33. Qh5 {[%clk 0:00:12]}  Rd7 {[%clk 0:00:06]} 34. Rf2 {[%clk 0:00:11]}  e5 {[%clk 0:00:06]} 35. Rbf1 {[%clk 0:00:10]}  e4 {[%clk 0:00:05]} 36. Rf6 {[%clk 0:00:07]}  Qd5 {[%clk 0:00:02]} 37. Rxg6 {[%clk 0:00:05]}  fxg6 {[%clk 0:00:02]} 38. Qxg6 {[%clk 0:00:06]} 1-0


[Site "https://www.chess.com"]